fUSD/lending_fUSD_20240823
["ID","MTS","AMOUNT","RATE_DAILY","PERIOD"]
[335694239,1724436652444,1768.29,0.00010931,2]
[335694240,1724436652797,200.34942875,0.00010945,2]
[335694241,1724436682155,540.49188591,0.00010899,2]
[335694242,1724436685936,422.35,0.00010959,2]
[335694243,1724436686230,4415.8802,0.000109,2]
[335694244,1724436695629,16250.27322581,0.00010945,2]
[335694245,1724436699612,274.14,0.00010918,2]
[335694246,1724436702519,822.3925,0.000109,2]
[335694247,1724436714206,223.376,0.000109,2]
[335694255,1724436733762,23900.0,0.00010874,2]
[335694256,1724436750287,485.07840464,0.000109,2]
[335694257,1724436770762,3329.8603,0.000109,2]
[335694258,1724436770850,409.92,0.00010851,2]
[335694259,1724436771591,12768.68824063,0.000109,2]
[335694260,1724436773404,1051.05102404,0.000109,2]
[335694261,1724436801720,565.64,8.887e-05,2]
[335694262,1724436804157,1000.0,0.00026849,120]
[335694263,1724436804584,1000.0,0.00026849,120]
[335694264,1724436809569,315.39429933,0.000109,2]
[335694265,1724436816774,250.0,0.00010767,2]
[335694267,1724436823543,54262.8012,0.000109,2]
[335694269,1724436842478,500.0,0.00010912,2]
[335694270,1724436842920,500.0,0.00024932,120]
[335694271,1724436845399,176.291,0.000109,2]
[335694273,1724436861026,200.0,0.00010959,2]
[335694276,1724436868396,155.53678612,0.00010949,2]
[335694277,1724436874350,155.0,0.00010949,2]
[335694279,1724436877698,440.53719218,0.00010949,2]
[335694281,1724436894104,3888.8824,0.000109,2]
[335694282,1724436901639,166.99171671,0.000109,2]
[335694283,1724436909425,34349.29,0.00010857,2]
[335694284,1724436916166,157.70095368,0.00010949,2]
[335694285,1724436929851,183.88839182,0.00010949,2]
[335694286,1724436935716,434.43,0.00010821,2]
[335694287,1724436937983,455.38015,0.0001089,2]
[335694288,1724436953235,9967.7323,0.000109,2]
[335694289,1724436957321,601.65421845,0.00010949,2]
[335694291,1724436981536,167.29,0.00010959,2]
[335694292,1724436984659,315.39429931,0.000109,2]
[335694293,1724437060618,155.15643283,0.00010949,2]
[335694294,1724437063340,7098.9808,0.000109,2]
[335694295,1724437064711,4289.745,0.000109,2]
[335694297,1724437122216,455283.69364295,0.000109,2]
[335694298,1724437122445,119189.81435705,0.000109,2]
[335694299,1724437150092,315.39429931,0.000109,2]
[335694301,1724437182068,166.9917167,0.000109,2]
[335694302,1724437193374,250.0,0.00010959,2]
[335694303,1724437211884,11491.81941654,0.000109,2]
[335694304,1724437234088,1617.93226539,0.00010949,2]
[335694305,1724437244748,212.78,0.00010641,2]
[335694307,1724437267855,35741.98754431,0.00010949,2]
[335694308,1724437286163,288.39682,0.0001089,2]
[335694309,1724437299547,672.06,0.00010767,2]
[335694310,1724437305372,23900.0,0.00010767,2]
[335694311,1724437306058,315.39429931,0.000109,2]
[335694312,1724437384288,549.97,8.772e-05,2]
[335694313,1724437397420,2634.90361908,0.00010949,2]
[335694314,1724437403419,1000.0,0.00027,120]
[335694315,1724437403784,1000.0,0.00027,120]
[335694316,1724437404379,370.75591567,0.00010949,2]
[335694317,1724437408774,171.94,0.00010601,2]
[335694318,1724437444862,500.0,0.00010912,2]
[335694319,1724437445281,500.0,0.00027,120]
[335694320,1724437449458,303.44197528,0.00010949,2]
[335694321,1724437451070,315.39429931,0.000109,2]
[335694322,1724437453847,168.74963163,0.000109,2]
[335694323,1724437454959,211.85239586,0.00010601,2]
[335694324,1724437460223,217.21,0.00010778,2]
[335694325,1724437461484,200.0,0.00027,120]
[335694326,1724437464810,240.41734105,0.00010601,2]
[335694327,1724437465651,20410.02713101,0.00010601,2]
[335694329,1724437469041,154.6,0.00010959,2]
[335694330,1724437469544,249.54234178,0.00010949,2]
[335694331,1724437470662,16250.27322581,0.00010601,2]
[335694332,1724437472464,693.93284973,0.00010601,2]
[335694334,1724437498945,601.08957958,0.00010949,2]
[335694335,1724437520060,250.0,0.00010768,2]
[335694336,1724437530028,5550.0,0.000101,2]
[335694337,1724437538895,651.79060203,0.00010781,2]
[335694338,1724437547115,1024.74628468,0.00010915,2]
[335694339,1724437552465,839.66111962,0.00010601,2]
[335694340,1724437567149,1472.62030481,0.0001,2]
[335694341,1724437571436,10693.24061787,0.00010915,2]
[335694342,1724437578586,2148.4248641,0.00010915,2]
[335694343,1724437580666,3145.61580839,0.00010915,2]
[335694344,1724437584274,222.63874779,0.000109,2]
[335694345,1724437586329,315.39429931,0.000109,2]
[335694346,1724437607377,904.48338785,0.00010915,2]
[335694347,1724437619778,234574.71293915,0.0001088,2]
[335694386,1724437678846,920.81569175,0.0001,2]
[335694388,1724437694846,50940.03935813,0.00027,120]
[335694440,1724437832022,-2638.07967468,0.00010113,2]
[335694441,1724437832087,-302.89792927,0.00010113,2]
[335694442,1724437832150,-685.05424735,0.00010113,2]
[335694443,1724437832161,-683.26256191,0.00010113,2]
[335694444,1724437832219,-785.69928348,0.00010113,2]
[335694445,1724437832285,-548.16321584,0.00010113,2]
[335694462,1724437838233,-18256.84308747,0.00010113,2]
[335694463,1724437838242,-462.35,0.00010229,2]
[335694464,1724437838252,-304.77980935,0.0001068,2]
[335694465,1724437838261,-262.9013,0.0001078,2]
[335694466,1724437838271,-315.39429931,0.0001079,2]
[335694467,1724437838281,-150.82,0.0001087,2]
[335694468,1724437838290,-153.57045411,0.0001087,2]
[335694469,1724437838299,-155.43484181,0.00010873,2]
[335694470,1724437838309,-400.0,0.00010873,2]
[335694471,1724437838318,-400.0,0.00010873,2]
[335694472,1724437838331,-810.16255304,0.00010877,2]
[335694473,1724437838340,-300.0,0.00010879,2]
[335694474,1724437838349,-300.0,0.00010879,2]
[335694475,1724437838358,-150.0,0.00010879,2]
[335694476,1724437838367,-289737.64804666,0.0001088,2]
[335694477,1724437838568,-12277.12637805,0.0001088,2]
[335694478,1724437838594,-1346.82658849,0.0001088,2]
[335694479,1724437838605,-566.16559982,0.0001088,2]
[335694480,1724437838616,-592.08569065,0.0001088,2]
[335694485,1724437840112,-768.14754483,0.0001088,2]
[335694486,1724437840148,-6332.8,0.0001088,2]
[335694487,1724437840159,-614.42952318,0.0001088,2]
[335694488,1724437840170,-874.77,0.0001088,2]
[335694489,1724437840186,-470.89476816,0.0001088,2]
[335694490,1724437840197,-485.3980518,0.0001088,2]
[335694491,1724437840209,-975.50742252,0.0001088,2]
[335694492,1724437840220,-807.664508,0.0001088,2]
[335694493,1724437840231,-273.0,0.0001088,2]
[335694494,1724437840242,-412.39,0.0001088,2]
[335694495,1724437840415,-15615.97172731,0.0001088,2]
[335694496,1724437840427,-308.94361421,0.0001088,2]
[335694497,1724437840457,-702096.70155911,0.0001088,2]
[335694498,1724437840467,-379.48346,0.0001089,2]
[335694499,1724437840476,-330.34282033,0.0001089,2]
[335694500,1724437840486,-10342.63747485,0.00010899,2]
[335694501,1724437840495,-155.0,0.00010899,2]
[335694502,1724437840505,-155.0,0.00010899,2]
[335694503,1724437840515,-168.7496316,0.000109,2]
[335694504,1724437840524,-1000.0,0.000109,2]
[335694505,1724437840533,-683.1641898,0.000109,2]
[335694506,1724437840543,-162.97553613,0.000109,2]
[335694507,1724437840552,-500.0,0.00010958,2]
[335694508,1724437840561,-277.11311203,0.00010958,2]
[335694509,1724437840571,-500.0,0.00010958,2]
[335694510,1724437840589,-500.0,0.00010958,2]
[335694511,1724437840598,-500.0,0.00010958,2]
[335694512,1724437840607,-537.44129521,0.00010958,2]
[335694513,1724437840617,-500.0,0.00010958,2]
[335694514,1724437840626,-500.0,0.00010973,2]
[335694515,1724437840635,-405.08127652,0.00010976,2]
[335694516,1724437840644,-35741.98754431,0.00010979,2]
[335694517,1724437840653,-259.89418851,0.00010979,2]
[335694519,1724437840663,-150.82,0.0001099,2]
[335694521,1724437840672,-153.57045411,0.0001099,2]
[335694522,1724437840680,-153.57045411,0.0001099,2]
[335694523,1724437840689,-2430.48765912,0.00010997,2]
[335694524,1724437840699,-226225.68638728,0.00010998,2]
[335694526,1724437840708,-150.30944536,0.00010999,2]
[335694529,1724437840718,-1853.75639391,0.00010999,2]
[335694530,1724437840728,-1000.0,0.00010999,2]
[335694533,1724437840738,-1000.0,0.00010999,2]
[335694534,1724437840748,-1000.0,0.00010999,2]
[335694536,1724437840758,-1000.0,0.00010999,2]
[335694538,1724437840767,-500.0,0.00010999,2]
[335694541,1724437840777,-506.37,0.00010999,2]
[335694542,1724437840787,-505.78869221,0.00010999,2]
[335694544,1724437840796,-500.0,0.00010999,2]
[335694546,1724437840806,-322.71,0.00010999,2]
[335694548,1724437840815,-297.87975465,0.00010999,2]
[335694550,1724437840836,-500.0,0.00010999,2]
[335694552,1724437840846,-500.0,0.00010999,2]
[335694554,1724437840855,-500.0,0.00010999,2]
[335694556,1724437840864,-500.0,0.00010999,2]
[335694558,1724437840873,-500.0,0.00010999,2]
[335694560,1724437840882,-274.71473256,0.00010999,2]
[335694562,1724437840891,-352.81,0.00010999,2]
[335694564,1724437840901,-500.0,0.00010999,2]
[335694566,1724437840911,-500.0,0.00010999,2]
[335694568,1724437840919,-500.0,0.00010999,2]
[335694570,1724437840929,-370.49251728,0.00010999,2]
[335694572,1724437840941,-150.82742913,0.00010999,2]
[335694574,1724437840950,-500.0,0.00010999,2]
[335694576,1724437840960,-500.0,0.00010999,2]
[335694578,1724437840970,-500.0,0.00010999,2]
[335694579,1724437840980,-300.78603558,0.00010999,2]
[335694581,1724437840989,-180.71492861,0.00010999,2]
[335694584,1724437841000,-1957209.09372747,0.00011,2]
[335694586,1724437841011,-2000.0,0.00011,2]
[335694588,1724437841024,-2000.0,0.00011,2]
[335694590,1724437841035,-2000.0,0.00011,2]
[335694592,1724437841045,-2000.0,0.00011,2]
[335694594,1724437841055,-1052.18746683,0.00011,2]
[335694595,1724437841064,-600.0,0.00011,2]
[335694597,1724437841079,-1551164.2766524,0.00011,2]
[335694599,1724437841089,-421.6,0.00011,2]
[335694601,1724437841098,-421.6,0.00011,2]
[335694603,1724437841108,-421.6,0.00011,2]
[335694605,1724437841118,-250.0,0.00011,2]
[335694607,1724437841127,-40062.82637437,0.00011,2]
[335694628,1724437841137,-243.665398,0.00011,2]
[335694630,1724437841332,-151.0,0.00011,2]
[335694632,1724437841342,-151.0,0.00011,2]
[335694633,1724437841351,-151.0,0.00011,2]
[335694635,1724437841360,-151.0,0.00011,2]
[335694637,1724437841371,-262.654155,0.00011,2]
[335694639,1724437841380,-450.2,0.00011,2]
[335694642,1724437841390,-151.0,0.00011,2]
[335694644,1724437841399,-241.54027468,0.00011,2]
[335694646,1724437841409,-4737.41,0.00011,2]
[335694647,1724437841419,-600.0,0.00011015,2]
[335694650,1724437841428,-500.0,0.00011015,2]
[335694651,1724437841438,-549.97,0.00011036,2]
[335694653,1724437841447,-1000.0,0.000111,2]
[335694655,1724437841457,-226.0,0.000111,2]
[335694657,1724437841467,-955.5,0.000111,2]
[335694659,1724437841477,-358.0,0.000111,2]
[335694661,1724437841487,-151.0,0.00011222,2]
[335694663,1724437841497,-151.0,0.00011222,2]
[335694665,1724437841507,-151.0,0.00011222,2]
[335694667,1724437841517,-167.964928,0.00011222,2]
[335694669,1724437841526,-151.0,0.00011222,2]
[335694671,1724437841536,-151.0,0.00011222,2]
[335694673,1724437841545,-151.0,0.00011222,2]
[335694675,1724437841555,-151.0,0.00011222,2]
[335694677,1724437841564,-242925.0,0.00011222,2]
[335694679,1724437841581,-292.78094392,0.00011273,2]
[335694681,1724437841592,-412.25431201,0.00011305,2]
[335694683,1724437841602,-1000.0,0.00011441,2]
[335694685,1724437841612,-151.0,0.00011442,2]
[335694687,1724437841622,-151.0,0.00011442,2]
[335694689,1724437841632,-263.90569,0.00011442,2]
[335694691,1724437841641,-300.0,0.000115,2]
[335694693,1724437841651,-150.0,0.000115,2]
[335694695,1724437841661,-150.0,0.000115,2]
[335694697,1724437841670,-462.35,0.00011508,2]
[335694699,1724437841679,-1000.0,0.00011521,2]
[335694701,1724437841688,-10342.63747484,0.0001158,2]
[335694703,1724437841697,-3000.0,0.00011894,7]
[335694705,1724437841706,-151.4,0.000119,2]
[335694707,1724437841716,-255.0,0.00011923,2]
[335694709,1724437841725,-500.0,0.0001195,2]
[335694711,1724437841734,-420.0,0.00011956,2]
[335694713,1724437841743,-3164.83609098,0.00011963,2]
[335694715,1724437841753,-420.0,0.00011967,2]
[335694717,1724437841762,-150.97,0.00011978,2]
[335694719,1724437841771,-2388.15575194,0.00011999,2]
[335694721,1724437841780,-174.24313625,0.00012,2]
[335694722,1724437841790,-155.03956424,0.00012,2]
[335694724,1724437841799,-500.0,0.00012,2]
[335694726,1724437841808,-2000.0,0.00012,2]
[335694729,1724437841818,-1785.8,0.00012,2]
[335694730,1724437841833,-301.29242391,0.00012,2]
[335694732,1724437841842,-2000.0,0.00012,2]
[335694734,1724437841852,-2000.0,0.00012,2]
[335694736,1724437841862,-500.0,0.00012,5]
[335694738,1724437841872,-500.0,0.00012,5]
[335694740,1724437841881,-2000.0,0.00012,2]
[335694742,1724437841890,-159.29,0.00012012,2]
[335694744,1724437841899,-596.87,0.00012033,2]
[335694746,1724437841908,-44448.57,0.00012055,2]
[335694748,1724437841918,-222.63874778,0.00012067,2]
[335694750,1724437841929,-3546.14313676,0.00012088,2]
[335694752,1724437841941,-5000.0,0.00012088,2]
[335694755,1724437841951,-652.0,0.000121,2]
[335694757,1724437841960,-600.0,0.000121,2]
[335694759,1724437841970,-9560.138,0.000121,2]
[335694761,1724437841981,-9560.138,0.000121,2]
[335694763,1724437841991,-2152.3935,0.000121,2]
[335694765,1724437842000,-2152.3935,0.000121,2]
[335694766,1724437842010,-513.7207,0.000121,2]
[335694768,1724437842020,-513.7207,0.000121,2]
[335694770,1724437842030,-3407.014,0.000121,2]
[335694772,1724437842040,-3407.014,0.000121,2]
[335694774,1724437842049,-583.22406878,0.00012111,2]
[335694776,1724437842059,-212.37057436,0.00012111,2]
[335694778,1724437842069,-150.0,0.00012111,2]
[335694780,1724437842082,-150.0,0.00012111,2]
[335694782,1724437842092,-260.58081839,0.00012111,2]
[335694784,1724437842103,-150.0,0.00012111,2]
[335694786,1724437842112,-150.0,0.00012111,2]
[335694788,1724437842121,-150.0,0.00012111,2]
[335694790,1724437842131,-150.0,0.00012111,2]
[335694792,1724437842140,-150.0,0.00012111,2]
[335694794,1724437842150,-299.77848185,0.00012111,2]
[335694796,1724437842160,-150.0,0.00012111,2]
[335694798,1724437842169,-150.0,0.00012111,2]
[335694800,1724437842180,-150.0,0.00012111,2]
[335694802,1724437842190,-150.0,0.00012111,2]
[335694804,1724437842200,-672.06,0.00012113,2]
[335694806,1724437842210,-168.7496316,0.00012204,2]
[335694808,1724437842219,-274.14,0.00012283,2]
[335694810,1724437842229,-151.0,0.0001231,2]
[335694812,1724437842238,-583.22406878,0.0001236,2]
[335694814,1724437842248,-212.37057436,0.0001236,2]
[335694816,1724437842257,-260.58081839,0.0001236,2]
[335694817,1724437842267,-10342.63747484,0.0001237,2]
[335694819,1724437842277,-600.0,0.00012385,2]
[335694821,1724437842286,-500.0,0.00012385,2]
[335694823,1724437842295,-1500.0,0.00012419,2]
[335694825,1724437842305,-596.87,0.00012458,2]
[335694827,1724437842315,-554.60808902,0.00012498,2]
[335694829,1724437842327,-290.07970822,0.000125,2]
[335694831,1724437842338,-11119.40571381,0.0001251,2]
[335694833,1724437842348,-781.30846,0.000126,2]
[335694835,1724437842356,-652.0,0.000126,2]
[335694837,1724437842366,-151.0,0.000126,2]
[335694839,1724437842375,-583.22406878,0.0001261,2]
[335694841,1724437842384,-212.37057436,0.0001261,2]
[335694843,1724437842393,-260.58081839,0.0001261,2]
[335694845,1724437842402,-150.0,0.00012636,2]
[335694847,1724437842412,-462.35,0.00012786,2]
[335694849,1724437842422,-241.51800878,0.00012849,2]
[335694851,1724437842432,-583.22406878,0.00012859,2]
[335694853,1724437842441,-212.37057436,0.00012859,2]
[335694855,1724437842450,-260.58081839,0.00012859,2]
[335694857,1724437842459,-596.87,0.00012884,2]
[335694858,1724437842469,-4177.02290346,0.00013,2]
[335694860,1724437842478,-2049.1,0.00013,2]
[335694862,1724437842488,-199.999999,0.00013,2]
[335694865,1724437842498,-2049.099999,0.00013,2]
[335694867,1724437842509,-2049.1,0.00013,2]
[335694869,1724437842518,-18652.69972858,0.00013,2]
[335694870,1724437842527,-2858.0,0.00013,5]
[335694872,1724437842537,-2049.099999,0.00013,2]
[335694874,1724437842546,-500.0,0.00013,2]
[335694876,1724437842555,-151.0,0.00013,2]
[335694878,1724437842564,-151.0,0.00013,2]
[335694880,1724437842574,-151.0,0.00013,2]
[335694882,1724437842585,-395.837203,0.00013,2]
[335694884,1724437842594,-395.837203,0.00013,2]
[335694886,1724437842603,-300.0,0.00013001,2]
[335694888,1724437842612,-16917.50730488,0.00013041,2]
[335694890,1724437842621,-5045.65566425,0.0001305,2]
[335694892,1724437842631,-151.0,0.0001305,2]
[335694894,1724437842640,-1000.0,0.00013069,2]
[335694895,1724437842649,-151.0,0.00013069,2]
[335694896,1724437842658,-151.0,0.00013069,2]
[335694897,1724437842667,-652.0,0.000131,2]
[335694898,1724437842676,-583.22406878,0.00013109,2]
[335694899,1724437842685,-212.37057436,0.00013109,2]
[335694900,1724437842693,-260.58081839,0.00013109,2]
[335694901,1724437842703,-587.0,0.0001314,2]
[335694902,1724437842711,-10342.63747484,0.0001316,2]
[335694903,1724437842721,-150.0,0.00013162,2]
[335694904,1724437842730,-587.0,0.00013164,2]
[335694905,1724437842738,-222.63874778,0.00013233,2]
[335694906,1724437842748,-5000.04438,0.000133,2]
[335694907,1724437842756,-549.97,0.000133,2]
[335694908,1724437842765,-596.87,0.0001331,2]
[335694909,1724437842775,-155.0,0.00013332,2]
[335694910,1724437842784,-583.22406878,0.00013358,2]
[335694911,1724437842793,-212.37057436,0.00013358,2]
[335694912,1724437842802,-260.58081839,0.00013358,2]
[335694913,1724437842811,-379.48347,0.0001339,2]
[335694914,1724437842820,-672.06,0.00013459,2]
[335694915,1724437842833,-1000.0,0.000135,2]
[335694916,1724437842842,-90123.54769338,0.000135,2]
[335694917,1724437842851,-151.0,0.000135,2]
[335694918,1724437842860,-151.0,0.000135,2]
[335694919,1724437842869,-2000.0,0.00013524,2]
[335694920,1724437842878,-652.0,0.000136,2]
[335694921,1724437842887,-583.22406878,0.00013607,2]
[335694922,1724437842896,-212.37057436,0.00013607,2]
[335694923,1724437842905,-260.58081839,0.00013607,2]
[335694924,1724437842914,-168.7496316,0.00013628,2]
[335694926,1724437842923,-274.14,0.00013648,2]
[335694928,1724437842933,-150.0,0.00013687,2]
[335694929,1724437842947,-150.82,0.00013689,2]
[335694930,1724437842956,-326.20982225,0.00013698,2]
[335694931,1724437842965,-1000.0,0.00013698,2]
[335694932,1724437842974,-1000.0,0.00013699,2]
[335694933,1724437842984,-1000.0,0.00013699,2]
[335694934,1724437842993,-1000.0,0.00013699,2]
[335694935,1724437843003,-1000.0,0.00013699,2]
[335694936,1724437843012,-1000.0,0.00013699,2]
[335694937,1724437843023,-1000.0,0.00013699,2]
[335694938,1724437843033,-1000.0,0.00013699,2]
[335694939,1724437843042,-1000.0,0.00013699,2]
[335694940,1724437843051,-1000.0,0.00013699,2]
[335694941,1724437843061,-1000.0,0.00013699,2]
[335694942,1724437843069,-1000.0,0.00013699,2]
[335694943,1724437843082,-1000.0,0.00013699,2]
[335694944,1724437843091,-1000.0,0.00013699,2]
[335694945,1724437843101,-1000.0,0.00013699,2]
[335694946,1724437843110,-1000.0,0.00013699,2]
[335694947,1724437843120,-1000.0,0.00013699,2]
[335694948,1724437843129,-1000.0,0.00013699,2]
[335694949,1724437843138,-1000.0,0.00013699,2]
[335694950,1724437843147,-1000.0,0.00013699,2]
[335694951,1724437843157,-1000.0,0.00013699,2]
[335694952,1724437843166,-1000.0,0.00013699,2]
[335694953,1724437843175,-1000.0,0.00013699,2]
[335694954,1724437843185,-1000.0,0.00013699,2]
[335694955,1724437843194,-1000.0,0.00013699,2]
[335694956,1724437843203,-800.0,0.00013699,2]
[335694958,1724437843212,-800.0,0.00013699,2]
[335694960,1724437843221,-800.0,0.00013699,2]
[335694962,1724437843231,-800.0,0.00013699,2]
[335694963,1724437843240,-800.0,0.00013699,2]
[335694964,1724437843249,-800.0,0.00013699,2]
[335694965,1724437843258,-800.0,0.00013699,2]
[335694966,1724437843267,-800.0,0.00013699,2]
[335694967,1724437843276,-800.0,0.00013699,2]
[335694968,1724437843285,-2946.18,0.00013699,2]
[335694969,1724437843295,-800.0,0.00013699,2]
[335694970,1724437843304,-800.0,0.00013699,2]
[335694971,1724437843313,-800.0,0.00013699,2]
[335694972,1724437843323,-800.0,0.00013699,2]
[335694973,1724437843334,-800.0,0.00013699,2]
[335694974,1724437843344,-800.0,0.00013699,2]
[335694975,1724437843353,-2751.0,0.00013699,2]
[335694976,1724437843363,-2336.11,0.00013699,2]
[335694977,1724437843372,-856.34,0.00013699,2]
[335694978,1724437843381,-500.0,0.00013699,2]
[335694979,1724437843390,-162.008215,0.00013699,2]
[335694980,1724437843399,-162.008215,0.00013699,2]
[335694981,1724437843409,-162.008215,0.00013699,2]
[335694982,1724437843419,-162.008215,0.00013699,2]
[335694983,1724437843428,-162.008215,0.00013699,2]
[335694984,1724437843438,-162.008215,0.00013699,2]
[335694985,1724437843447,-200.0,0.00013699,2]
[335694986,1724437843457,-150.0,0.00013699,2]
[335694987,1724437843466,-500.0,0.00013699,2]
[335694988,1724437843475,-500.0,0.00013699,2]
[335694989,1724437843485,-500.0,0.00013699,2]
[335694990,1724437843494,-500.0,0.00013699,2]
[335694991,1724437843503,-500.0,0.00013699,2]
[335694992,1724437843512,-600.0,0.00013699,2]
[335694993,1724437843521,-600.0,0.00013699,2]
[335694994,1724437843530,-240.434234,0.00013699,2]
[335694995,1724437843539,-240.434234,0.00013699,2]
[335694996,1724437843549,-500.0,0.00013699,2]
[335694997,1724437843558,-151.0,0.000137,2]
[335694998,1724437843568,-151.0,0.000137,2]
[335694999,1724437843580,-151.0,0.000137,2]
[335695000,1724437843589,-151.0,0.000137,2]
[335695001,1724437843598,-174.694179,0.000137,2]
[335695002,1724437843607,-174.694179,0.000137,2]
[335695003,1724437843616,-151.0,0.000137,2]
[335695004,1724437843625,-151.0,0.000137,2]
[335695006,1724437843634,-151.0,0.000137,2]
[335695007,1724437843643,-151.0,0.000137,2]
[335695008,1724437843652,-151.0,0.000137,2]
[335695009,1724437843662,-151.0,0.000137,2]
[335695010,1724437843671,-154.132119,0.000137,2]
[335695011,1724437843680,-151.0,0.000137,2]
[335695012,1724437843689,-151.0,0.000137,2]
[335695013,1724437843698,-151.0,0.000137,2]
[335695014,1724437843706,-151.0,0.000137,2]
[335695015,1724437843716,-210.825734,0.000137,2]
[335695016,1724437843725,-210.825734,0.000137,2]
[335695017,1724437843734,-151.0,0.000137,2]
[335695018,1724437843744,-151.0,0.000137,2]
[335695019,1724437843753,-151.0,0.000137,2]
[335695020,1724437843763,-395.837203,0.000137,2]
[335695021,1724437843772,-395.837203,0.000137,2]
[335695022,1724437843781,-6906.51,0.000137,2]
[335695023,1724437843790,-6906.51,0.000137,2]
[335695024,1724437843799,-6906.51,0.000137,2]
[335695025,1724437843808,-6906.51,0.000137,2]
[335695026,1724437843817,-6906.51,0.000137,2]
[335695027,1724437843829,-152.69,0.00013718,2]
[335695028,1724437843838,-159.29,0.00013728,2]
[335695029,1724437843847,-596.87,0.00013735,2]
[335695030,1724437843856,-600.0,0.00013755,2]
[335695031,1724437843866,-500.0,0.00013755,2]
[335695032,1724437843875,-150.0,0.00013757,2]
[335695033,1724437843884,-31904.2509118,0.0001377,2]
[335695034,1724437843893,-256.20836,0.0001377,2]
[335695035,1724437843903,-151.0,0.0001377,2]
[335695036,1724437843912,-151.0,0.0001377,2]
[335695037,1724437843921,-162.008215,0.0001377,2]
[335695038,1724437843930,-1000.0,0.00013799,2]
[335695039,1724437843942,-151.0,0.000138,2]
[335695040,1724437843952,-151.0,0.000138,2]
[335695041,1724437843961,-190.810826,0.000138,2]
[335695042,1724437843970,-151.0,0.000138,2]
[335695043,1724437843979,-174.694179,0.000138,2]
[335695044,1724437843989,-174.694179,0.000138,2]
[335695045,1724437843999,-151.0,0.000138,2]
[335695046,1724437844008,-151.0,0.000138,2]
[335695047,1724437844018,-151.0,0.000138,2]
[335695048,1724437844029,-151.0,0.000138,2]
[335695049,1724437844039,-151.0,0.000138,2]
[335695050,1724437844048,-151.0,0.000138,2]
[335695051,1724437844057,-230.557088,0.000138,2]
[335695052,1724437844067,-151.0,0.000138,2]
[335695053,1724437844078,-151.0,0.000138,2]
[335695054,1724437844087,-151.0,0.000138,2]
[335695055,1724437844096,-151.0,0.000138,2]
[335695056,1724437844105,-600.0,0.000138,2]
[335695057,1724437844115,-600.0,0.000138,2]
[335695058,1724437844124,-240.434234,0.000138,2]
[335695059,1724437844133,-240.434234,0.000138,2]
[335695060,1724437844143,-151.0,0.000138,2]
[335695061,1724437844153,-151.0,0.000138,2]
[335695062,1724437844163,-151.0,0.000138,2]
[335695063,1724437844172,-151.0,0.000138,2]
[335695065,1724437844182,-395.837203,0.000138,2]
[335695067,1724437844191,-395.837203,0.000138,2]
[335695069,1724437844201,-151.0,0.000138,2]
[335695071,1724437844210,-583.22406878,0.00013857,2]
[335695073,1724437844220,-212.37057436,0.00013857,2]